[Event "76th Montenegro Championship 2024"]
[Site "Podgorica"]
[Date "2024.02.08"]
[Round "3.2"]
[White "Djukic, Nikola"]
[Black "Musovic, Armin"]
[Result "1-0"]
[ECO "B12"]
[WhiteElo "2529"]
[BlackElo "2268"]
[Annotator "TA"]
[PlyCount "87"]
[EventDate "2024.02.06"]
[EventType "swiss"]
[EventCountry "MNE"]
[SourceTitle "playchess.com"]
[Source "ChessBase"]
[SourceQuality "1"]
[TimeControl "40/5400+30:1800+30"]

{[%evp 9,87,21,10,4,11,14,29,31,25,35,34,39,51,16,22,22,35,29,46,14,25,32,15,19,24,8,48,40,67,68,68,92,108,125,181,174,185,178,175,12,19,0,0,0,0,0,0,0,0,0,0,5,11,0,0,0,0,0,0,0,0,0,0,0,0,0,8,6,51,66,147,142,228,230,523,518,1864,1661,1289,1140]} 1. e4 {[%emt 0:04:35]} c6 {[%emt 0:00:04]} 2. d4 {[%emt 0:00:06]} d5 {[%emt 0:00:03]} 3. e5 {[%emt 0:00:06]} c5 {[%emt 0:00:05]} 4. Nf3 {[%emt 0:00:05]} cxd4 {[%emt 0:00:27]} 5. Nxd4 {[%emt 0:00:06]} Nc6 {[%emt 0:00:37]} 6. Nxc6 {[%emt 0:00:08]} bxc6 {[%emt 0:00:03] Black is weak on the dark squares} 7. Bd3 {[%emt 0:00:08]} Ba6 {[%emt 0:04:22]} 8. O-O {[%emt 0:04:50] White has an edge.} Bxd3 {[%emt 0:00:37]} 9. cxd3 {[%emt 0:00:05][%cal Oe5e6]} e6 {[%emt 0:00:22]} 10. Be3 {[%emt 0:00:07]} Ne7 {[%emt 0:07:30]} 11. Qa4 {[%emt 0:10:36][%cal Of2f4]} Qd7 {[%emt 0:02:02][%cal Oc6c5]} 12. Nd2 {[%emt 0:01:12][%cal Bb1d2,Bd2b3,Bb3a5,Ba5c4][%mdl 32]} Ng6 {[%emt 0:09:57]} 13. f4 {[%emt 0:00:45]} c5 {[%emt 0:03:48]} 14. Qxd7+ {[%emt 0:01:21]} Kxd7 {[%emt 0:00:03]} 15. Nb3 {[%emt 0:09:23]} d4 {[%emt 0:18:28]} 16. Bd2 {[%emt 0:00:18]} Be7 {[%emt 0:03:55]} 17. Na5 {[%emt 0:11:32]} Rab8 {[%emt 0:01:49]} 18. Nc4 {[%emt 0:00:10]} Nh4 {[%emt 0:02:32]} 19. g3 {[%emt 0:04:23]} Nf5 {[%emt 0:00:29]} 20. g4 {[%emt 0:00:37]} Nh4 {[%emt 0:02:06]} 21. Be1 $1 {[%emt 0:02:47]} h5 {[%emt 0:02:55]} (21... Rbf8 $16 {might work better.}) 22. Bxh4 $18 {[%emt 0:00:16]} Bxh4 {[%emt 0:00:02]} 23. g5 {[%emt 0:00:48] Black must now prevent Kg2.} f6 {[%emt 0:00:12] [#]} 24. gxf6 {[%emt 0:08:02]} (24. Kg2 $1 $18 {aiming for gxf6.} Rhg8 25. b3 fxg5 26. Kh3) 24... gxf6 $11 {[%emt 0:00:12]} 25. f5 {[%emt 0:03:18]} Rhg8+ {[%emt 0:13:18]} 26. Kh1 {[%emt 0:00:14]} fxe5 {[%emt 0:00:09]} 27. Nxe5+ {[%emt 0:05:41]} Kd6 {[%emt 0:00:03]} 28. Nc4+ {[%emt 0:00:19]} Kd5 {[%emt 0:02:10]} 29. fxe6 {[%emt 0:05:02]} Kxe6 {[%emt 0:00:54]} 30. Rf4 {[%emt 0:13:32]} Rg4 {[%emt 0:00:04]} 31. Rxg4 {[%emt 0:03:00]} (31. Rf3 {is interesting.} Rbg8 32. Raf1 Rg2 33. Rf4) 31... hxg4 {[%emt 0:00:04][%mdl 4096] Endgame. KRB-KRN} 32. Rf1 {[%emt 0:00:10]} Rh8 {[%emt 0:07:18]} 33. Kg2 {[%emt 0:00:18] Repels Bg3} Bf6 {[%emt 0:07:10]} 34. Re1+ {[%emt 0:09:16]} Kd5 {[%emt 0:02:48]} 35. Rf1 {[%emt 0:00:27]} Ke6 {[%emt 0:00:18]} ({And not} 35... Be5 36. Rf5 Re8 (36... Rxh2+ 37. Kg1 $18) 37. Rg5 $16) 36. Kg3 {[%emt 0:00:09]} Rh3+ {[%emt 0:05:57]} 37. Kxg4 {[%emt 0:00:07]} Rxd3 {[%emt 0:03:07]} 38. h4 {[%emt 0:00:07][%cal Bh2h4,Bh4h5,Bh5h6][%mdl 32]} Kd5 {[%emt 0:00:02]} 39. b3 {[%emt 0:00:18]} Be5 {[%emt 0:00:08] [#]} (39... Bg7 $14) 40. h5 $1 $16 {[%emt 0:00:00] Nxe5 would now be deadly.} ({Don't play} 40. Rf5 $6 Rg3+ 41. Kh5 Re3 $11) 40... Bg7 {[%emt 0:00:00]} (40... Rg3+ $16 {was worth a try.} 41. Kh4 Bc7) 41. Rf5+ $18 {[%emt 0:09:15]} Kc6 $2 {[%emt 0:09:18]} (41... Ke6 {keeps fighting.} 42. Rxc5 Rd1) 42. h6 $1 {[%emt 0:04:38] White is clearly winning.} Bh8 {[%emt 0:01:28]} (42... Rd1 $142 43. hxg7 Rg1+ 44. Kf4 Rxg7 45. Ne5+ Kb7) 43. Rf8 {[%emt 0:00:25]} Rd1 {[%emt 0:00:08]} 44. Rxh8 {[%emt 0:00:08] Weighted Error Value: White=0.07 (flawless) /Black=0.26 (precise) .  Missed win:     	White=1     	---        Mistake:       	---       	Black=5      Inaccurate:     	White=1     	Black=3      OK:         	White=17    	Black=16     Best:        	White=2     	Black=3      Strong:       	White=3     	---} 1-0

[Event "76th Montenegro Championship 2024"]
[Site "Podgorica"]
[Date "2024.02.08"]
[Round "3.3"]
[White "Nikcevic, Nebojsa"]
[Black "Draskovic, Luka"]
[Result "1/2-1/2"]
[ECO "D37"]
[WhiteElo "2338"]
[BlackElo "2481"]
[Annotator "TA"]
[PlyCount "28"]
[EventDate "2024.02.06"]
[EventType "swiss"]
[EventCountry "MNE"]
[SourceTitle "playchess.com"]
[Source "ChessBase"]
[SourceQuality "1"]
[TimeControl "40/5400+30:1800+30"]

{[%evp 9,28,20,19,7,4,16,17,18,0,15,4,12,10,-3,0,0,0,0,5,6,8]} 1. d4 {[%emt 0:03:59]} d5 {[%emt 0:00:08]} 2. c4 {[%emt 0:00:33]} e6 {[%emt 0:00:07]} 3. Nc3 {[%emt 0:00:35]} h6 {[%emt 0:00:31]} 4. Nf3 {[%emt 0:02:24]} Nf6 {[%emt 0:00:52]} 5. Qc2 {[%emt 0:01:02]} c5 {[%emt 0:06:24] The position is equal.} 6. e3 {[%emt 0:05:53]} Nc6 {[%emt 0:05:36]} 7. dxc5 {[%emt 0:07:20]} Bxc5 {[%emt 0:05:30]} 8. a3 {[%emt 0:00:07]} d4 {[%emt 0:27:42]} 9. exd4 {[%emt 0:09:19]} Nxd4 {[%emt 0:02:17]} 10. Nxd4 {[%emt 0:00:07]} Qxd4 {[%emt 0:03:07]} 11. Bd3 {[%emt 0:14:08]} Bd7 {[%emt 0:09:36]} 12. Ne4 {[%emt 0:05:51]} Nxe4 {[%emt 0:04:55]} 13. Bxe4 {[%emt 0:00:06]} O-O {[%emt 0:00:46][%cal Od7a4]} 14. Be3 {[%emt 0:04:30]} Qe5 {[%emt 0:00:48] An uneventful encounter.   Weighted Error Value: White=0.04 (flawless) /Black=0.02 (flawless) .  OK:         	White=5     	Black=2      Best:        	---       	Black=1} 1/2-1/2

[Event "76th Montenegro Championship 2024"]
[Site "Podgorica"]
[Date "2024.02.08"]
[Round "3.4"]
[White "Milovic, Jovan"]
[Black "Smirnov, Artem"]
[Result "0-1"]
[ECO "A00"]
[WhiteElo "2223"]
[BlackElo "2406"]
[Annotator "RC"]
[PlyCount "70"]
[EventDate "2024.02.06"]
[EventType "swiss"]
[EventCountry "MNE"]
[SourceTitle "playchess.com"]
[Source "ChessBase"]
[SourceQuality "1"]
[TimeControl "40/5400+30:1800+30"]

1. g3 {[%emt 0:07:04]} d5 {[%emt 0:00:45]} 2. Bg2 {[%emt 0:00:20]} e5 {[%emt 0:00:31]} 3. d4 {[%emt 0:02:40]} exd4 {[%emt 0:00:38]} 4. Qxd4 {[%emt 0:00:22]} Nf6 {[%emt 0:00:26]} 5. Bg5 {[%emt 0:00:30]} Be7 {[%emt 0:01:24]} 6. Nc3 {[%emt 0:00:51]} c6 {[%emt 0:08:10]} 7. Nf3 {[%emt 0:09:45]} O-O {[%emt 0:11:16]} 8. O-O-O {[%emt 0:03:33]} h6 {[%emt 0:05:13]} 9. h4 {[%emt 0:00:59]} Qb6 {[%emt 0:11:43]} 10. Qd3 {[%emt 0:03:17]} Na6 {[%emt 0:08:16]} 11. Nd4 {[%emt 0:04:09]} Re8 {[%emt 0:07:51]} 12. Nf5 {[%emt 0:19:56]} Bxf5 {[%emt 0:14:03]} 13. Qxf5 {[%emt 0:00:46]} g6 {[%emt 0:03:08]} 14. Qh3 {[%emt 0:02:11]} d4 {[%emt 0:09:41]} 15. Ne4 {[%emt 0:06:45]} Nxe4 {[%emt 0:02:03]} 16. Bxe4 {[%emt 0:00:07]} Ba3 {[%emt 0:03:14]} 17. bxa3 {[%emt 0:01:44]} Rxe4 {[%emt 0:00:02]} 18. Bxh6 {[%emt 0:02:14]} Nc5 {[%emt 0:06:27]} 19. g4 {[%emt 0:04:43]} Na4 {[%emt 0:01:53]} 20. Qb3 {[%emt 0:00:28]} Nc3 {[%emt 0:00:15]} 21. Rd2 {[%emt 0:01:21]} Nxe2+ {[%emt 0:01:22]} 22. Kb2 {[%emt 0:00:30]} Rae8 {[%emt 0:01:10]} 23. f3 {[%emt 0:06:55]} R4e5 {[%emt 0:00:11]} 24. a4 {[%emt 0:00:24]} c5 {[%emt 0:00:36]} 25. Qxb6 {[%emt 0:04:40]} axb6 {[%emt 0:00:01]} 26. Kb3 {[%emt 0:00:08]} Nc3 {[%emt 0:00:59]} 27. h5 {[%emt 0:00:47]} g5 {[%emt 0:01:54]} 28. f4 {[%emt 0:00:51]} gxf4 {[%emt 0:00:19]} 29. Bxf4 {[%emt 0:00:16]} Re4 {[%emt 0:00:34]} 30. Rf1 {[%emt 0:00:52]} Ra8 {[%emt 0:00:44]} 31. h6 {[%emt 0:02:30]} Rxa4 {[%emt 0:00:15]} 32. a3 {[%emt 0:00:24]} c4+ {[%emt 0:00:34]} 33. Kb2 {[%emt 0:00:06]} Ne2 {[%emt 0:00:35]} 34. Bg5 {[%emt 0:01:43]} c3+ {[%emt 0:00:16]} 35. Kb3 {[%emt 0:00:05]} cxd2 {[%emt 0:00:38]} 0-1

[Event "76th Montenegro Championship 2024"]
[Site "Podgorica"]
[Date "2024.02.08"]
[Round "3.5"]
[White "Vujovic, Savo"]
[Black "Sukovic, Andrej"]
[Result "0-1"]
[ECO "B56"]
[WhiteElo "2137"]
[BlackElo "2339"]
[Annotator "TA"]
[PlyCount "56"]
[EventDate "2024.02.06"]
[EventType "swiss"]
[EventCountry "MNE"]
[SourceTitle "playchess.com"]
[Source "ChessBase"]
[SourceQuality "1"]
[TimeControl "40/5400+30:1800+30"]

{[%evp 9,56,28,31,41,35,34,43,27,36,31,30,16,40,-13,60,12,29,-26,-27,-26,-22,-27,-27,-74,-65,-70,-72,-72,-71,-84,-87,-108,-127,-247,-248,-345,-207,-362,-330,-5595,-5755,-5381,-3870,-29974,-29975,-29969,-29966,-29994,-29993]} 1. e4 {[%emt 0:02:44]} c5 {[%emt 0:02:57]} 2. Nf3 {[%emt 0:00:09]} d6 {[%emt 0:00:05]} 3. d4 {[%emt 0:00:04]} cxd4 {[%emt 0:00:05]} 4. Nxd4 {[%emt 0:00:03]} Nf6 {[%emt 0:00:06]} 5. Nc3 {[%emt 0:00:04]} Nbd7 {[%emt 0:01:03]} 6. g4 {[%emt 0:08:12] Strongly threatening g5.} h6 {[%emt 0:00:13]} 7. Be3 {[%emt 0:03:02]} a6 {[%emt 0:12:56]} 8. f3 {[%emt 0:01:44] White is slightly better.} e6 {[%emt 0:02:48]} 9. Qd2 {[%emt 0:01:27]} b5 {[%emt 0:12:30]} 10. a3 {[%emt 0:24:06]} Bb7 {[%emt 0:02:55]} 11. h4 {[%emt 0:08:05]} (11. O-O-O $14) 11... Nb6 {[%emt 0:25:02]} ({Black should try} 11... d5 $11) 12. Qf2 {[%emt 0:10:48]} (12. O-O-O $14) 12... Nfd7 $11 {[%emt 0:02:08]} 13. Rg1 {[%emt 0:15:36]} ({White should play} 13. g5) 13... Rc8 {[%emt 0:06:43]} 14. g5 {[%emt 0:00:55] [#]} Rxc3 $1 {[%emt 0:06:06]} 15. bxc3 {[%emt 0:00:30] g6 is the strong threat.} Qc7 {[%emt 0:00:09]} 16. Qd2 {[%emt 0:01:14]} (16. Rb1 $11) 16... hxg5 $17 {[%emt 0:00:08]} 17. hxg5 {[%emt 0:00:05]} g6 $1 {[%emt 0:00:21]} 18. c4 {[%emt 0:06:42]} Nxc4 {[%emt 0:01:06]} 19. Bxc4 {[%emt 0:00:05]} Qxc4 {[%emt 0:00:15]} 20. Qd3 {[%emt 0:00:41]} Qc7 {[%emt 0:03:37]} 21. Rd1 {[%emt 0:02:24]} (21. O-O-O $17) 21... d5 $19 {[%emt 0:02:12]} 22. exd5 {[%emt 0:02:44][%cal Od4e6] [#] Black must now prevent Nxe6!} Bxd5 {[%emt 0:00:06] ...Ne5 would now be deadly.} 23. Bd2 $2 {[%emt 0:03:07]} (23. f4) 23... Bd6 {[%emt 0:03:29]} 24. Qc3 $2 {[%emt 0:02:47]} (24. f4) 24... Bg3+ {[%emt 0:02:03]} 25. Kf1 {[%emt 0:00:04]} Bc4+ {[%emt 0:00:19] A strong pair of Bishops.} 26. Ne2 {[%emt 0:00:17]} Bxe2+ {[%emt 0:01:21] Black mates.} 27. Kxe2 {[%emt 0:00:03]} Rh2+ {[%emt 0:00:10]} 28. Kd3 {[%emt 0:00:44]} Nc5+ {[%emt 0:00:23] Weighted Error Value: White=0.84/Black=0.17 (very precise) .  Mistake:       	White=7     	Black=1      Inaccurate:     	White=1     	Black=1      OK:         	White=3     	Black=8      Best:        	White=2     	Black=3      Strong:       	---       	Black=1} 0-1

[Event "76th Montenegro Championship 2024"]
[Site "Podgorica"]
[Date "2024.02.08"]
[Round "3.6"]
[White "Djurovic, Peko"]
[Black "Petrov, Nikita"]
[Result "0-1"]
[ECO "C89"]
[WhiteElo "2332"]
[BlackElo "2563"]
[Annotator "TA"]
[PlyCount "68"]
[EventDate "2024.02.06"]
[EventType "swiss"]
[EventCountry "MNE"]
[SourceTitle "playchess.com"]
[Source "ChessBase"]
[SourceQuality "1"]
[TimeControl "40/5400+30:1800+30"]

{[%evp 29,68,31,36,33,45,39,214,-19,-6,-148,-100,-132,-22,-51,-29,-137,-166,-562,-558,-541,-548,-509,-511,-689,-258,-300,-302,-261,-232,-386,-392,-419,-312,-316,-301,-333,-327,-664,-651,-606,-572]} 1. e4 {[%emt 0:02:36]} e5 {[%emt 0:03:50]} 2. Nf3 {[%emt 0:00:15]} Nc6 {[%emt 0:00:12]} 3. Bb5 {[%emt 0:00:14][%cal Bf1b5,Bb5a4,Ba4b3][%mdl 32]} a6 {[%emt 0:00:35]} 4. Ba4 {[%emt 0:00:29]} Nf6 {[%emt 0:00:26]} 5. O-O {[%emt 0:01:14]} Be7 {[%emt 0:00:26]} 6. Re1 {[%emt 0:01:47]} b5 {[%emt 0:00:37]} 7. Bb3 {[%emt 0:00:05]} O-O {[%emt 0:00:23]} 8. c3 {[%emt 0:01:17]} d5 {[%emt 0:00:50]} 9. exd5 {[%emt 0:01:46]} Nxd5 {[%emt 0:00:09]} 10. Nxe5 {[%emt 0:00:27]} Nxe5 {[%emt 0:00:06]} 11. Rxe5 {[%emt 0:00:02]} c6 {[%emt 0:00:09]} 12. d4 {[%emt 0:02:26]} Bd6 {[%emt 0:01:05]} 13. Re1 {[%emt 0:00:07]} Qh4 {[%emt 0:00:08]} 14. g3 {[%emt 0:01:31]} Qh3 {[%emt 0:00:07]} 15. Re4 {[%emt 0:02:53]} g5 {[%emt 0:00:32]} 16. Qf1 {[%emt 0:06:24]} (16. Bxg5 $2 Qf5 17. Nd2 (17. Bxd5 $2 cxd5 18. Re3 Qxg5 $19) 17... Qxg5 $19) 16... Qh5 {[%emt 0:02:24]} 17. Nd2 {[%emt 0:00:35]} Nf4 $2 {[%emt 0:17:33]} 18. Rxf4 $2 {[%emt 0:31:44]} (18. gxf4 $18 gxf4 19. Qe2 Qg6+ 20. Kf1) 18... Bxf4 $11 {[%emt 0:17:42]} (18... gxf4 $6 19. Ne4 Qh6 20. Nxd6 Qxd6 21. Bxf4 $16 (21. gxf4 $2 Bf5 $17)) 19. gxf4 {[%emt 0:01:15]} (19. Ne4 $1 $11 {keeps the balance.} Qg6 20. gxf4 Qxe4 21. fxg5 (21. f3 Qg6 $15)) 19... Bh3 $17 {[%emt 0:07:10]} 20. Bd1 {[%emt 0:36:27] [#]} Qh4 {[%emt 0:14:54] Black is more active.} (20... Qh6 $1 $17 21. Qd3 Rae8) 21. Qe2 {[%emt 0:00:34]} gxf4 {[%emt 0:12:19]} 22. Ne4 {[%emt 0:02:16] [#] Repels Qg5+} ({Avoid the trap} 22. Qh5 $2 Rfe8 $19) (22. Qf3 $1 $11 {was the only way to keep the balance.} Kh8 23. Ne4 (23. Qxc6 {gets mated.} Rg8+ 24. Kh1 Qxf2 25. Qf6+ Rg7) (23. Kh1 $2 Rae8 $19)) 22... f5 $1 {[%emt 0:07:14]} 23. Bxf4 $2 {[%emt 0:05:01]} (23. Bb3+ {is more resistant.} Kh8 24. Ng3) 23... Qxf4 $19 {[%emt 0:02:37]} 24. Ng3 {[%emt 0:00:31]} Rae8 {[%emt 0:03:19]} 25. Bb3+ {[%emt 0:00:07]} Kh8 {[%emt 0:00:08]} 26. Qh5 {[%emt 0:00:11]} Qg4 {[%emt 0:01:31]} (26... Bg4 27. Qh4 Qd2) 27. Qxg4 {[%emt 0:01:09]} Bxg4 {[%emt 0:02:34]} 28. f4 {[%emt 0:00:31]} h5 {[%emt 0:00:44] ...h4 would now be deadly.} 29. h4 $2 {[%emt 0:00:35]} (29. h3 {only move.} Re3 (29... Bxh3 $2 30. Kf2 $19) 30. hxg4 Rxg3+ 31. Kf2 Rxg4 32. Rh1) 29... Re3 {[%emt 0:00:58]} 30. Kg2 {[%emt 0:00:04]} Rfe8 {[%emt 0:02:11] White must now prevent ...Rd3.} 31. Rf1 {[%emt 0:00:28]} Kg7 {[%emt 0:00:37]} 32. Rf2 {[%emt 0:00:37]} Kf6 {[%emt 0:00:09]} 33. Nf1 $2 {[%emt 0:00:49]} (33. a3) 33... Bh3+ {[%emt 0:00:17]} 34. Kg1 {[%emt 0:00:09]} Re1 {[%emt 0:00:18] Weighted Error Value: White=0.86/Black=0.61.  Loses game:     	---       	Black=1      Missed win:     	White=1     	---        Mistake:       	White=5     	Black=2      Inaccurate:     	White=3     	---        OK:         	White=3     	Black=4      Best:        	White=2     	Black=3      Strong:       	---       	Black=1} 0-1

[Event "76th Montenegro Championship 2024"]
[Site "Podgorica"]
[Date "2024.02.08"]
[Round "3.7"]
[White "Drasko, Milan"]
[Black "Krstonijevic, Stjepan"]
[Result "1/2-1/2"]
[ECO "A07"]
[WhiteElo "2339"]
[BlackElo "2108"]
[Annotator "TA"]
[PlyCount "60"]
[EventDate "2024.02.06"]
[EventType "swiss"]
[EventCountry "MNE"]
[SourceTitle "playchess.com"]
[Source "ChessBase"]
[SourceQuality "1"]
[TimeControl "40/5400+30:1800+30"]

{[%evp 14,60,10,8,10,0,0,0,17,13,21,17,6,28,39,34,46,8,44,44,51,36,41,25,49,55,74,84,73,52,52,48,56,56,62,61,60,56,60,52,60,53,56,56,56,56,56,56,63]} 1. Nf3 {[%emt 0:00:35]} d5 {[%emt 0:00:02]} 2. g3 {[%emt 0:02:03]} Nf6 {[%emt 0:00:08]} 3. Bg2 {[%emt 0:00:25]} c6 {[%emt 0:00:07]} 4. O-O {[%emt 0:01:06]} Bg4 {[%emt 0:00:07]} 5. d3 {[%emt 0:01:18]} Nbd7 {[%emt 0:00:07]} 6. Qe1 {[%emt 0:00:18]} e5 {[%emt 0:00:25]} 7. e4 {[%emt 0:00:43]} dxe4 {[%emt 0:00:06]} 8. dxe4 {[%emt 0:00:11]} a5 {[%emt 0:00:01]} 9. Nbd2 {[%emt 0:07:08]} h6 {[%emt 0:00:23]} 10. b3 {[%emt 0:13:36]} Bb4 {[%emt 0:06:56] The position is equal.} 11. Bb2 {[%emt 0:04:02]} O-O {[%emt 0:22:57]} 12. a3 {[%emt 0:03:34]} Bxf3 {[%emt 0:28:47]} 13. Bxf3 {[%emt 0:00:42]} Bxd2 {[%emt 0:02:50]} 14. Qxd2 {[%emt 0:00:09]} Qb6 {[%emt 0:00:42]} 15. Rad1 {[%emt 0:09:40]} Rfe8 {[%emt 0:03:08]} 16. Rfe1 {[%emt 0:06:47]} Nf8 {[%emt 0:00:37]} 17. Qe3 {[%emt 0:01:51]} Qc7 {[%emt 0:06:34]} 18. Be2 {[%emt 0:06:15]} Rad8 {[%emt 0:00:58]} 19. f3 {[%emt 0:01:17]} Ng6 {[%emt 0:02:11]} 20. Rxd8 {[%emt 0:03:30]} Rxd8 {[%emt 0:00:07]} 21. Rd1 {[%emt 0:00:15]} Rxd1+ {[%emt 0:00:18] White is slightly better.} 22. Bxd1 {[%emt 0:00:07]} Nd7 {[%emt 0:02:30]} 23. Be2 {[%emt 0:02:15]} Qd6 {[%emt 0:01:34]} 24. Qd3 {[%emt 0:07:50]} Qc7 {[%emt 0:06:49]} 25. Bc3 {[%emt 0:05:44]} b6 {[%emt 0:01:09]} 26. Qd2 {[%emt 0:07:59]} Nc5 {[%emt 0:00:50]} 27. Kg2 {[%emt 0:00:29]} Ne6 {[%emt 0:00:15]} 28. Bc4 {[%emt 0:00:34]} Ngf8 {[%emt 0:00:16]} 29. a4 {[%emt 0:01:35]} Nc5 {[%emt 0:01:55]} 30. Bb2 {[%emt 0:04:57]} Nfe6 {[%emt 0:00:30] Weighted Error Value: White=0.06 (flawless) /Black=0.07 (flawless) .  Inaccurate:     	White=1     	Black=1      OK:         	White=7     	Black=8} 1/2-1/2

[Event "76th Montenegro Championship 2024"]
[Site "Podgorica"]
[Date "2024.02.08"]
[Round "3.8"]
[White "Skvortsov, Andrei"]
[Black "Miletic, Vuk"]
[Result "1/2-1/2"]
[ECO "B21"]
[WhiteElo "2307"]
[BlackElo "2213"]
[Annotator "TA"]
[PlyCount "39"]
[EventDate "2024.02.06"]
[EventType "swiss"]
[EventCountry "MNE"]
[SourceTitle "playchess.com"]
[Source "ChessBase"]
[SourceQuality "1"]
[TimeControl "40/5400+30:1800+30"]

{[%evp 9,39,20,0,5,13,-38,-26,-23,-14,0,-9,0,-3,0,0,0,0,0,-21,-37,-1,-20,0,0,0,0,0,0,0,0,0,0]} 1. e4 {[%emt 0:05:32]} c5 {[%emt 0:00:20]} 2. d4 {[%emt 0:00:05]} cxd4 {[%emt 0:00:36]} 3. Qxd4 {[%emt 0:00:05]} Nc6 {[%emt 0:00:58]} 4. Qd3 {[%emt 0:00:07]} Nf6 {[%emt 0:02:31]} 5. Nc3 {[%emt 0:01:01]} e6 {[%emt 0:01:05]} 6. Bf4 {[%emt 0:00:04]} a6 {[%emt 0:01:05]} 7. O-O-O {[%emt 0:00:05]} (7. Nf3 $11) 7... b5 $15 {[%emt 0:01:08]} 8. e5 {[%emt 0:00:03] Black has an edge.} Qc7 {[%emt 0:00:35]} 9. Qf3 {[%emt 0:00:03]} (9. exf6 Qxf4+ 10. Kb1 Qxf6 $19 (10... Qxf2 11. Nf3 $11)) 9... Ng8 {[%emt 0:00:12]} 10. Ne4 {[%emt 0:00:06]} Bb7 {[%emt 0:00:29]} 11. Nd6+ {[%emt 0:00:03]} Bxd6 {[%emt 0:00:05]} 12. exd6 {[%emt 0:00:03]} Qa5 {[%emt 0:00:04]} 13. Qg3 {[%emt 0:00:03]} Kf8 {[%emt 0:02:37]} (13... Qxa2 $2 {perishes.} 14. Qxg7 Qa4 (14... Qa1+ $2 15. Kd2 $18) 15. Ne2 $18 (15. Qxh8 Qxf4+ 16. Kb1 O-O-O $18)) 14. Kb1 {[%emt 0:00:18]} Nf6 {[%emt 0:02:09] Threatens to win with ...Ne4.} 15. Bd2 $1 {[%emt 0:01:36] [#] The position is equal.} Ne4 $1 {[%emt 0:00:42][%csl LRd2,LRg3]} 16. Bxa5 {[%emt 0:00:05]} Nxg3 {[%emt 0:00:05]} 17. hxg3 {[%emt 0:00:03]} Nxa5 {[%emt 0:00:17]} 18. a4 {[%emt 0:00:01]} bxa4 {[%emt 1:24:32]} 19. Rh4 Bc6 {[%emt 0:00:30]} 20. Nf3 {Not much happened in this game.   Weighted Error Value: White=0.07 (flawless) /Black=0.03 (flawless) .  Mistake:       	White=1     	---        OK:         	White=6     	Black=10     Best:        	White=2     	Black=2      Strong:       	White=1     	---} 1/2-1/2